[Event "European Women Rapid-ch 2023"]
[Site "Monaco"]
[Date "2024.01.13"]
[Round "4.17"]
[White "De Seroux, Camille"]
[Black "Hejazipour, Mitra"]
[Result "1-0"]
[ECO "A00"]
[WhiteElo "2075"]
[BlackElo "2356"]
[Annotator "TA"]
[PlyCount "121"]
[EventDate "2023.12.19"]
[EventType "swiss"]
[EventCountry "MNC"]
[SourceTitle "playchess.com"]
[Source "ChessBase"]
[SourceQuality "1"]
[TimeControl "900+10"]

{[%evp 26,121,9,-25,-24,-35,22,0,32,29,40,0,40,-54,28,-168,33,-120,13,-160,15,18,19,12,13,18,8,-38,0,0,-3,-136,0,0,0,0,80,74,364,385,397,385,391,391,376,324,360,333,346,351,416,408,418,425,416,370,459,411,409,406,411,401,754,757,754,737,695,688,785,716,2204,2137,1429,1442,1297,1361,1273,1283,1503,1475,1846,1406,2330,2246,29968,29968,2266,6935,29980,29981,29980,29981,29981,29977,29983,29984,29984,29985]} 1. Nc3 {[%emt 0:00:01]} d5 {[%emt 0:00:11]} 2. Nf3 {[%emt 0:00:01]} Nf6 {[%emt 0:00:06]} 3. d3 {[%emt 0:00:02]} Bg4 {[%emt 0:00:35]} 4. Ne5 {[%emt 0:00:43]} Bh5 {[%emt 0:00:08]} 5. h3 {[%emt 0:01:08]} Nbd7 $146 {[%emt 0:00:36]} ({Predecessor:} 5... d4 6. Nb1 Qd5 7. f4 e6 8. c4 Qa5+ 9. Kf2 Nbd7 10. g4 Bg6 11. Nxg6 fxg6 {0-1 Pickard,S-McClintock,D (2365) Dallas Pinfork op3 1996 (3)}) 6. Bf4 {[%emt 0:01:22] A00: Unregelmäßige Eröffnungen.} d4 {[%emt 0:01:59]} 7. Ne4 {[%emt 0:03:12]} Nd5 {[%emt 0:02:00]} 8. Bh2 {[%emt 0:00:27]} e6 {[%emt 0:01:17]} 9. a3 {[%emt 0:00:56]} f6 {[%emt 0:04:39]} 10. Nxd7 {[%emt 0:00:48]} Qxd7 {[%emt 0:00:01]} 11. g4 {[%emt 0:00:46]} Bg6 {[%emt 0:00:02]} 12. Bg2 {[%emt 0:00:08]} h5 {[%emt 0:00:01]} 13. c4 {[%emt 0:02:46]} Nb6 {[%emt 0:00:27]} 14. Bf3 {[%emt 0:01:10]} hxg4 {[%emt 0:00:03]} 15. hxg4 {[%emt 0:00:04]} f5 {[%emt 0:00:48]} (15... e5 $15) 16. Ng3 {[%emt 0:01:08]} c6 {[%emt 0:00:37]} 17. Qd2 {[%emt 0:00:07]} Bd6 {[%emt 0:00:22]} 18. O-O-O {[%emt 0:00:10]} O-O-O {[%emt 0:00:20]} 19. Qa5 {[%emt 0:01:01]} (19. gxf5 $14 exf5 20. Qg5) 19... Kb8 {[%emt 0:00:18]} (19... fxg4 $1 $15 20. Bxg4 Bf4+ 21. Kb1 Nxc4 22. Qxa7 Qd5) 20. Kb1 $2 {[%emt 0:00:32]} (20. Nf1 $11 {und Weiss ist OK.}) 20... Bc7 $2 {[%emt 0:00:10]} (20... Nxc4 $19 21. dxc4 b6 (21... fxg4+ 22. Be4 $15)) 21. Qd2 $2 {[%emt 0:00:09]} (21. gxf5 $1 $14 {war der einzige gute Zug.} Bxf5 22. Qc5) 21... Na4 {[%emt 0:00:23]} (21... fxg4 $17 22. Bxg4 Nxc4) 22. Ka1 $2 {[%emt 0:00:13] [#]} ({Günstiger ist} 22. Qg5 $11 Bh7 23. gxf5) 22... a5 $2 {[%emt 0:00:11]} (22... f4 $1 $17 {[%cal Rf4g3]} 23. Nf1 Nc5 (23... e5 24. Qb4 $17)) 23. Qg5 {[%emt 0:00:34]} Qf7 {[%emt 0:00:09]} 24. gxf5 {[%emt 0:00:40]} exf5 {[%emt 0:00:02]} 25. Nf1 {[%emt 0:00:06]} f4 {[%emt 0:00:20]} (25... Bxh2 {vereinfacht} 26. Rxh2 Qf6 27. Qxf6 gxf6 28. Rxh8 Rxh8 29. Nd2 Nc5) 26. Nd2 {[%emt 0:00:08]} (26. Bxf4 $11 Qxf4 (26... Bxf4 27. Qxa5 Bc7 28. Qxa4 $16) 27. Qxg6) 26... Rh6 {[%emt 0:00:29]} 27. Rdg1 {[%emt 0:00:16]} Rdh8 {[%emt 0:00:05]} 28. Rg2 {[%emt 0:00:02]} (28. Ka2 $11 {bleibt in der Remisbreite.}) 28... Qf5 {[%emt 0:00:44]} (28... Bf5 $17 {Droht stark ...Rg6.} 29. Be4 Rh5 30. Bxf5 Rxg5 31. Rxg5 Qe7) 29. Nb3 $11 {[%emt 0:00:18]} Qxg5 {[%emt 0:00:43]} 30. Rxg5 {[%emt 0:00:01]} Bf7 {[%emt 0:00:07]} ({Ein No Go ist} 30... Rxh2 $6 31. Rxh2 Rxh2 32. Rxg6 $18) (30... Bxd3 $11 {hält das Gleichgewicht.} 31. exd3 Rxh2) 31. Rxg7 $16 {[%emt 0:00:12]} Be6 $2 {[%emt 0:00:06][%mdl 8192]} (31... Bxc4 $16 32. Nxa5 Rxh2 33. Rxh2 Rxh2 34. Nxc4 Rxf2) 32. Rxc7 $18 {[%emt 0:00:04]} ({Nicht} 32. Nxd4 Be5 $18) 32... Rxh2 {[%emt 0:00:10]} 33. Rxh2 {[%emt 0:00:06]} Rxh2 {[%emt 0:00:01]} 34. Re7 {[%emt 0:00:09]} Bc8 {[%emt 0:00:10]} 35. Nxd4 {[%emt 0:00:08]} Rxf2 {[%emt 0:00:02]} 36. Nb3 {[%emt 0:00:09]} Rf1+ {[%emt 0:00:11]} 37. Ka2 {[%emt 0:00:01]} Nb6 {[%emt 0:00:48]} 38. Nxa5 {[%emt 0:00:04]} Nd7 {[%emt 0:00:08]} 39. b4 {[%emt 0:00:18]} Kc7 {[%emt 0:00:12]} 40. Nb3 {[%emt 0:00:05]} Kd6 {[%emt 0:00:11]} 41. Re8 {[%emt 0:00:07]} Kc7 {[%emt 0:00:03]} 42. Nd4 {[%emt 0:00:07]} Nf6 {[%emt 0:00:22]} 43. Rf8 {[%emt 0:00:03]} Ng4 {[%emt 0:00:01]} (43... Nd7 $142) 44. Rxc8+ $18 {[%emt 0:00:03]} Kxc8 {[%emt 0:00:01]} 45. Bxg4+ {[%emt 0:00:02]} Kc7 {[%emt 0:00:01]} 46. Bf3 {[%emt 0:00:02]} Kd6 {[%emt 0:00:02]} 47. c5+ {[%emt 0:00:07]} Ke5 {[%emt 0:00:02]} 48. Nb3 {[%emt 0:00:05]} Rg1 {[%emt 0:00:04]} 49. Na5 {[%emt 0:00:03]} Rg7 {[%emt 0:00:01]} 50. Kb3 {[%emt 0:00:10]} Kd4 {[%emt 0:00:03]} 51. Nc4 {[%emt 0:00:07]} Re7 {[%emt 0:00:20]} 52. Nd6 {[%emt 0:00:04]} Ke5 {[%emt 0:00:08]} 53. Kc4 {[%emt 0:00:07]} Rh7 {[%emt 0:00:08]} 54. a4 {[%emt 0:00:20]} Rg7 {[%emt 0:00:13]} 55. d4+ {[%emt 0:00:35]} Ke6 {[%emt 0:00:02]} 56. d5+ {[%emt 0:00:04]} Ke5 {[%emt 0:00:33]} 57. dxc6 {[%emt 0:00:07]} bxc6 {[%emt 0:00:01]} 58. Bxc6 {[%emt 0:00:04]} Rg1 {[%emt 0:00:02]} 59. Bf3 {[%emt 0:00:14]} Rc1+ {[%emt 0:00:03]} 60. Kb5 {[%emt 0:00:02]} Kd4 {[%emt 0:00:03]} 61. c6 {[%emt 0:00:17]} 1-0

[Event "European Women Rapid-ch 2023"]
[Site "Monaco"]
[Date "2024.01.13"]
[Round "4.18"]
[White "Movsesian, Julia"]
[Black "Zvereva, Marija"]
[Result "0-1"]
[ECO "B32"]
[WhiteElo "2257"]
[BlackElo "2049"]
[Annotator "TA"]
[PlyCount "80"]
[EventDate "2023.12.19"]
[EventType "swiss"]
[EventCountry "MNC"]
[SourceTitle "playchess.com"]
[Source "ChessBase"]
[SourceQuality "1"]
[TimeControl "900+10"]

{[%evp 18,80,17,43,68,48,39,35,42,38,53,0,18,9,0,-70,0,-72,-67,-56,-37,-37,0,11,0,14,0,0,33,16,64,68,94,108,107,103,111,106,110,-161,-152,-437,-366,-1266,-1234,-1556,-1530,-29987,-890,-901,-901,-901,-891,-880,-861,-839,-818,-1167,-1169,-1149,-1129,-1301,-1162,-2147,-2070]} 1. e4 {[%emt 0:00:01]} c5 {[%emt 0:00:03]} 2. Nf3 {[%emt 0:00:02]} Nc6 {[%emt 0:00:01]} 3. d4 {[%emt 0:00:02]} cxd4 {[%emt 0:00:02]} 4. Nxd4 {[%emt 0:00:01]} e5 {[%emt 0:00:02]} 5. Nb5 {[%emt 0:00:03]} d6 {[%emt 0:00:01]} 6. N1c3 {[%emt 0:00:06]} a6 {[%emt 0:00:02]} 7. Na3 {[%emt 0:00:02]} b5 {[%emt 0:00:01][%cal Bb7b5,Bb5b4][%mdl 32]} 8. Nd5 {[%emt 0:00:05]} Nce7 {[%emt 0:00:07]} 9. c4 {[%emt 0:00:14]} Nxd5 {[%emt 0:00:03]} 10. exd5 {[%emt 0:00:08]} b4 {[%emt 0:00:49]} 11. Nc2 {[%emt 0:00:02]} a5 {[%emt 0:00:07]} 12. Bd3 {[%emt 0:00:54]} f5 {[%emt 0:00:09] Weiß steht etwas besser.} 13. O-O {[%emt 0:00:04]} Nf6 {[%emt 0:00:05]} 14. f3 {[%emt 0:00:28]} g6 {[%emt 0:00:30]} 15. b3 {[%emt 0:00:50]} Bg7 {[%emt 0:00:19]} 16. Bb2 {[%emt 0:00:24]} ({Vorzuziehen ist} 16. a3 $11) 16... O-O {[%emt 0:00:26]} (16... Nd7 $15) 17. f4 {[%emt 0:00:22]} (17. a3 $11 {bleibt in der Remisbreite.}) 17... Qb6+ {[%emt 0:00:23]} 18. Kh1 {[%emt 0:00:02]} Ng4 {[%emt 0:00:08] ...Nf2+ wäre nun fies.} 19. fxe5 {[%emt 0:02:45]} Nf2+ {[%emt 0:00:48]} (19... dxe5 $15 20. Qe1 Qd6) 20. Rxf2 $1 $11 {[%emt 0:00:02]} Qxf2 {[%emt 0:00:01]} 21. Bd4 {[%emt 0:00:55]} Qh4 {[%emt 0:00:57]} (21... Bxe5 $2 22. Bxf2 Bxa1 23. Nxa1 $18) 22. g3 {[%emt 0:00:23]} Qe7 {[%emt 0:01:07]} 23. e6 {[%emt 0:00:21][%mdl 1024] Weiss hat Kompensation.} Bb7 {[%emt 0:00:29]} (23... a4 $11 {verdient Beachtung.}) 24. Qe2 $14 {[%emt 0:00:43]} Rae8 {[%emt 0:00:48]} 25. Re1 {[%emt 0:00:17]} f4 {[%emt 0:01:38] Lässt Qe3 nicht zu} 26. Be4 {[%emt 0:02:23]} Qg5 {[%emt 0:01:38]} 27. Bxg7 {[%emt 0:00:32]} Kxg7 {[%emt 0:00:07] [#]} 28. Kg2 {[%emt 0:00:15][%mdl 8192] [#]} (28. g4 $1 $16) 28... Rxe6 $1 $19 {[%emt 0:03:37]} 29. Nd4 {[%emt 0:00:37] Der Zug kostet die Partie für Weiß.} (29. dxe6 $17 {einziger Zug.} f3+ 30. Bxf3 Bxf3+ 31. Qxf3 Rxf3 32. e7) 29... Ree8 {[%emt 0:00:44]} 30. Ne6+ $2 {[%emt 0:00:26] [#]} (30. Qd2) 30... Rxe6 $1 {[%emt 0:00:12][%mdl 512]} 31. dxe6 {[%emt 0:00:01]} (31. Qb2+ Qe5) 31... f3+ {[%emt 0:00:02]} 32. Bxf3 {[%emt 0:01:48]} Bxf3+ {[%emt 0:00:02]} (32... Rxf3 $142 33. Qe4 Bxe4 34. Rxe4 Re3 (34... Qf5 $2 35. Rf4 $19) 35. Rxe3 Qxe3 36. Kf1 Qxe6 37. h4 Qf6+ 38. Kg2 Qb2+ 39. Kf3 Qxa2 40. Kg4 Qf2 (40... Qxb3 {wird mattgesetzt.} 41. h5 Qxc4+ 42. Kf3 b3 43. hxg6 Kxg6 44. Kf2 b2 45. Kf3 b1=Q 46. g4 Qg1 47. g5 Qcg4#) 41. Kh3 Kf6 42. c5 h5 (42... dxc5 {führt zum Matt.} 43. h5 gxh5 44. g4 h4 45. g5+ Kf5 46. g6 Qg3#) 43. g4 Ke5 (43... dxc5 44. g5+ Ke5 $11) 44. gxh5 Kf4 45. hxg6 Qg3#) 33. Qxf3 {[%emt 0:00:02] Schwarz steht klar auf Gewinn.} Rxf3 {[%emt 0:00:01]} 34. Kxf3 {[%emt 0:00:01][%mdl 4096] Endspiel. KQ-KR} Qf5+ {[%emt 0:00:14]} 35. Kg2 {[%emt 0:00:08]} Qc2+ {[%emt 0:00:03]} 36. Kf1 {[%emt 0:00:16]} Kf8 {[%emt 0:00:52]} 37. Re2 {[%emt 0:00:04]} Qd1+ {[%emt 0:00:07]} 38. Kf2 {[%emt 0:00:00]} Ke7 {[%emt 0:00:11]} 39. Re1 {[%emt 0:00:27]} Qd4+ {[%emt 0:00:09]} 40. Kf1 {[%emt 0:00:18] [#]} a4 $1 {[%emt 0:00:25] Gewichteter Fehlerwert: Weiß=1.11/Schwarz=0.39.  Verlustzug:     	Weiß=2     	---        Fehler:       	Weiß=3     	Schwarz=3     Ungenau:       	Weiß=1     	Schwarz=2     OK:         	Weiß=8     	Schwarz=5     Bester:       	Weiß=2     	---        Stark:        	Weiß=1     	Schwarz=1     Brilliant:      	---       	Schwarz=1} 0-1

[Event "European Women Rapid-ch 2023"]
[Site "Monaco"]
[Date "2024.01.13"]
[Round "4.19"]
[White "Collado Barbas, Laura"]
[Black "Navrotescu, Andreea"]
[Result "0-1"]
[ECO "D35"]
[WhiteElo "2037"]
[BlackElo "2222"]
[Annotator "TA"]
[PlyCount "82"]
[EventDate "2023.12.19"]
[EventType "swiss"]
[EventCountry "MNC"]
[SourceTitle "playchess.com"]
[Source "ChessBase"]
[SourceQuality "1"]
[TimeControl "900+10"]

{[%evp 15,82,6,10,26,43,7,21,-48,-20,-25,-8,-9,0,0,0,0,0,0,-8,-27,0,-35,-19,-31,-25,-41,-37,-75,-81,-132,-149,-159,-78,-91,-84,-92,-70,-168,-170,-226,-240,-285,-302,-386,-162,-471,-473,-735,-706,-666,-625,-695,-700,-887,-883,-915,-877,-924,-920,-1277,-1284,-1258,-1105,-1957,-1834,-2125,-2008,-2577,-2420]} 1. d4 {[%emt 0:00:04]} d5 {[%emt 0:00:02]} 2. c4 {[%emt 0:00:01]} e6 {[%emt 0:00:01]} 3. Nc3 {[%emt 0:00:02]} Nf6 {[%emt 0:00:02]} 4. cxd5 {[%emt 0:00:02]} exd5 {[%emt 0:00:02]} 5. Bg5 {[%emt 0:00:02]} Be7 {[%emt 0:00:01]} 6. e3 {[%emt 0:00:02]} O-O {[%emt 0:00:02]} 7. Bd3 {[%emt 0:00:06]} Re8 {[%emt 0:00:05]} 8. Qc2 {[%emt 0:00:26]} h6 {[%emt 0:00:04]} 9. Bh4 {[%emt 0:00:03]} c5 {[%emt 0:00:02]} 10. Nge2 {[%emt 0:00:39]} Nc6 {[%emt 0:00:13]} 11. a3 {[%emt 0:01:38]} ({White should try} 11. dxc5 $11 Bg4 12. Rd1) 11... c4 {[%emt 0:02:47]} 12. Bf5 {[%emt 0:00:11]} a6 {[%emt 0:01:30]} 13. O-O {[%emt 0:01:21]} b5 {[%emt 0:00:30]} 14. Bxc8 {[%emt 0:00:45]} Rxc8 {[%emt 0:00:02]} 15. Bxf6 {[%emt 0:01:05]} Bxf6 {[%emt 0:00:02]} 16. Nf4 {[%emt 0:00:09]} Ne7 {[%emt 0:00:36]} 17. Rad1 {[%emt 0:00:09]} g6 {[%emt 0:00:14]} 18. Rfe1 {[%emt 0:00:14]} Bg7 {[%emt 0:00:10]} 19. Qe2 {[%emt 0:00:19]} Qd7 {[%emt 0:00:09]} 20. Qf3 {[%emt 0:00:22]} Red8 {[%emt 0:00:32]} 21. e4 {[%emt 0:05:37]} dxe4 {[%emt 0:00:02]} 22. Nxe4 {[%emt 0:00:29]} (22. Rxe4 $142 Re8 23. g3) 22... Nf5 {[%emt 0:00:32]} (22... Bxd4 $2 23. Nf6+ Bxf6 24. Rxd7 Rxd7 25. Nxg6 Nxg6 26. Qxf6 $18) 23. Ne2 {[%emt 0:05:10]} Qa7 {[%emt 0:03:01]} (23... Bxd4 $2 24. Nxd4 Nxd4 25. Nf6+ Kg7 26. Nxd7 $18) ({Better is} 23... Qc7 {[%cal Rf5d4]} 24. g3 Qb6 (24... Bxd4 25. g4 $11) (24... Nxd4 $2 25. Nxd4 Bxd4 26. Rd2 $19)) 24. d5 $17 {[%emt 0:00:00]} Bxb2 {[%emt 0:00:04] Black is more active.} 25. N2c3 {[%emt 0:00:00]} Bxa3 {[%emt 0:01:46]} (25... Nd6 {simplifies} 26. Nxd6 Rxd6 27. Ne4 Rd7) 26. Nf6+ {[%emt 0:00:12]} Kg7 {[%emt 0:00:11][%cal Ob5b4] And now ...b4! would win.} 27. Nce4 {[%emt 0:00:11]} (27. Nh5+ {might work better.} Kf8 (27... gxh5 28. Qxf5 Qd7 29. Qe5+ f6 30. Qxh5 $11) 28. g4) 27... Bb2 {[%emt 0:00:26][%cal Oc4c3]} 28. Nh5+ {[%emt 0:00:14]} Kf8 {[%emt 0:00:32][%cal Oc4c3]} ({Worse is} 28... gxh5 29. Qxf5 h4 30. Qg4+ Kh7 31. Qf5+ Kg8 32. Nd6 Rxd6 33. Qxc8+ Kg7 34. Qg4+ Rg6 35. Qc8 $11 (35. Qxh4 Qc5 $11)) 29. Nf4 {[%emt 0:00:12]} Kg8 {[%emt 0:01:36]} (29... c3 $142 {...c2 is the strong threat.} 30. g4 c2 31. gxf5 cxd1=Q (31... c1=B $2 {perishes.} 32. Ne6+ fxe6 33. fxe6+ Kg7 34. d6 $18) (31... gxf5 $2 32. Ng3 $19) 32. Rxd1 gxf5) 30. g4 $2 {[%emt 0:00:06] [#]} (30. d6 {was the crucial defense.}) 30... Nd6 $19 {[%emt 0:00:35] Black is clearly winning.} 31. Qh3 {[%emt 0:00:16]} (31. Kg2 $142) 31... Nxe4 {[%emt 0:00:12]} 32. Rxe4 {[%emt 0:00:02]} Bg7 {[%emt 0:00:07]} 33. Rde1 {[%emt 0:00:08]} c3 {[%emt 0:00:12]} 34. Re7 {[%emt 0:00:13]} Qd4 {[%emt 0:00:22]} 35. Qf3 {[%emt 0:00:04]} Qf6 {[%emt 0:00:19]} 36. Qe3 {[%emt 0:00:14]} c2 {[%emt 0:00:08]} 37. Nd3 {[%emt 0:00:09]} Rxd5 {[%emt 0:00:25] [#] White must now prevent ...Rc3.} 38. Nb4 {[%emt 0:00:08]} Rdd8 {[%emt 0:00:28]} 39. Na2 {[%emt 0:00:21]} Rd1 {[%emt 0:00:15] ...Bf8 would now be deadly.} 40. Nc1 {[%emt 0:00:04]} Rcd8 {[%emt 0:00:26]} 41. Re4 {[%emt 0:00:18]} Rxe1+ {[%emt 0:00:04] Weighted Error Value: White=0.66/Black=0.19 (very precise) .  Mistake:       	White=5     	Black=2      Inaccurate:     	White=3     	Black=2      OK:         	White=4     	Black=6      Best:        	White=3     	Black=2} 0-1

[Event "European Women Rapid-ch 2023"]
[Site "Monaco"]
[Date "2024.01.13"]
[Round "4.20"]
[White "Lazarne Vajda, Szidonia"]
[Black "Mrvova, Alena"]
[Result "1-0"]
[ECO "B22"]
[WhiteElo "2283"]
[BlackElo "2160"]
[Annotator "ChessBase"]
[PlyCount "117"]
[EventDate "2023.12.19"]
[EventType "swiss"]
[EventCountry "MNC"]
[SourceTitle "playchess.com"]
[Source "ChessBase"]
[SourceQuality "1"]
[TimeControl "900+10"]

1. e4 {[%emt 0:00:03]} c5 {[%emt 0:00:04]} 2. c3 {[%emt 0:00:01]} d5 {[%emt 0:00:14]} 3. exd5 {[%emt 0:00:03]} Qxd5 {[%emt 0:00:02]} 4. d4 {[%emt 0:00:01]} Nf6 {[%emt 0:00:14]} 5. Nf3 {[%emt 0:00:02]} e6 {[%emt 0:00:12]} 6. Be3 {[%emt 0:00:08]} Nc6 {[%emt 0:00:25]} 7. Bd3 {[%emt 0:00:43]} cxd4 {[%emt 0:00:18]} 8. cxd4 {[%emt 0:00:02]} Bb4+ {[%emt 0:00:16]} 9. Nc3 {[%emt 0:00:02]} O-O {[%emt 0:00:20]} 10. O-O {[%emt 0:00:02]} Qh5 {[%emt 0:00:32]} 11. Ne2 {[%emt 0:00:13]} Bd6 {[%emt 0:01:19]} 12. h3 {[%emt 0:01:02]} Ne7 {[%emt 0:01:03]} 13. Ng3 {[%emt 0:00:25]} Qa5 {[%emt 0:01:07]} 14. Bg5 {[%emt 0:00:23]} Ned5 {[%emt 0:00:28]} 15. Ne5 {[%emt 0:00:04]} h6 {[%emt 0:00:35]} 16. Bd2 {[%emt 0:00:59]} Qd8 {[%emt 0:01:04]} 17. Rc1 {[%emt 0:00:30]} Bb4 {[%emt 0:00:52]} 18. Bb1 {[%emt 0:00:18]} Bxd2 {[%emt 0:00:35]} 19. Qxd2 {[%emt 0:00:01]} Nd7 {[%emt 0:00:31]} 20. Qd3 {[%emt 0:00:59]} f5 {[%emt 0:00:03]} 21. Rfe1 {[%emt 0:00:36]} N7f6 {[%emt 0:02:04]} 22. Ng6 {[%emt 0:00:37]} Re8 {[%emt 0:00:24]} 23. a3 {[%emt 0:00:03]} Kh7 {[%emt 0:00:25]} 24. Ne5 {[%emt 0:00:03]} Nf4 {[%emt 0:00:37]} 25. Qe3 {[%emt 0:00:09]} N6d5 {[%emt 0:00:02]} 26. Qf3 {[%emt 0:00:06]} Qf6 {[%emt 0:00:13]} 27. Ba2 {[%emt 0:00:35]} Re7 {[%emt 0:01:23]} 28. Nh5 {[%emt 0:00:21]} Nxh5 {[%emt 0:00:10]} 29. Qxh5 {[%emt 0:01:09]} b6 {[%emt 0:00:27]} 30. Bxd5 {[%emt 0:00:24]} exd5 {[%emt 0:00:01]} 31. Re3 {[%emt 0:00:50]} f4 {[%emt 0:01:04]} 32. Rec3 {[%emt 0:00:15]} Bf5 {[%emt 0:00:20]} 33. Rc6 {[%emt 0:00:16]} Qf8 {[%emt 0:00:22]} 34. Rc7 {[%emt 0:02:03]} Rae8 {[%emt 0:00:20]} 35. R1c6 {[%emt 0:00:00]} Rxc7 {[%emt 0:01:14]} 36. Rxc7 {[%emt 0:00:00]} Bb1 {[%emt 0:00:24]} 37. Rf7 {[%emt 0:00:11]} Qd6 {[%emt 0:00:17]} 38. Rxf4 {[%emt 0:00:08]} Bg6 {[%emt 0:00:16]} 39. Qg4 {[%emt 0:00:52]} Rxe5 {[%emt 0:00:03]} 40. dxe5 {[%emt 0:00:03]} Qxe5 {[%emt 0:00:01]} 41. Rd4 {[%emt 0:01:04]} Qe1+ {[%emt 0:00:27]} 42. Kh2 {[%emt 0:00:03]} Qxf2 {[%emt 0:00:02]} 43. Rxd5 {[%emt 0:00:03]} Qxb2 {[%emt 0:00:01]} 44. Qg3 {[%emt 0:00:16]} Be4 {[%emt 0:00:41]} 45. Rd7 {[%emt 0:00:39]} a5 {[%emt 0:00:02]} 46. Re7 {[%emt 0:00:14]} Bg6 {[%emt 0:00:19]} 47. Qc7 {[%emt 0:01:15]} Qf6 {[%emt 0:00:18]} 48. Re3 {[%emt 0:00:14]} b5 {[%emt 0:00:04]} 49. Qxa5 {[%emt 0:01:16]} Qf4+ {[%emt 0:00:01]} 50. Rg3 {[%emt 0:00:01]} h5 {[%emt 0:00:01]} 51. Qb4 {[%emt 0:00:42]} Qe5 {[%emt 0:00:14]} 52. Qh4 {[%emt 0:00:16]} Kh6 {[%emt 0:00:23]} 53. Qd8 {[%emt 0:00:04]} Bh7 {[%emt 0:00:22]} 54. h4 {[%emt 0:00:29]} Bf5 {[%emt 0:00:22]} 55. Qg5+ {[%emt 0:00:07]} Kh7 {[%emt 0:00:00]} 56. Qxh5+ {[%emt 0:00:02]} Kg8 {[%emt 0:00:00]} 57. Qg5 {[%emt 0:00:06]} g6 {[%emt 0:00:05]} 58. h5 {[%emt 0:00:05]} Qh8 {[%emt 0:00:07]} 59. Qxf5 {[%emt 0:00:14]} 1-0

[Event "European Women Rapid-ch 2023"]
[Site "Monaco"]
[Date "2024.01.13"]
[Round "4.21"]
[White "Gaprindashvili, Nona"]
[Black "Hryshchenko, Kamila"]
[Result "0-1"]
[ECO "E73"]
[WhiteElo "2243"]
[BlackElo "2192"]
[Annotator "ChessBase"]
[PlyCount "84"]
[EventDate "2023.12.19"]
[EventType "swiss"]
[EventCountry "MNC"]
[SourceTitle "playchess.com"]
[Source "ChessBase"]
[SourceQuality "1"]
[TimeControl "900+10"]

1. d4 {[%emt 0:00:01]} d6 {[%emt 0:00:01]} 2. c4 {[%emt 0:00:03]} g6 {[%emt 0:00:01]} 3. Nc3 {[%emt 0:00:03]} Bg7 {[%emt 0:00:02]} 4. e4 {[%emt 0:00:04]} Nf6 {[%emt 0:00:04]} 5. Be2 {[%emt 0:00:12]} O-O {[%emt 0:00:04]} 6. h4 {[%emt 0:00:03]} h5 {[%emt 0:00:06]} 7. f3 {[%emt 0:00:18]} c6 {[%emt 0:00:07]} 8. Be3 {[%emt 0:00:09]} Qc7 {[%emt 0:00:11]} 9. Qd2 {[%emt 0:00:10]} a6 {[%emt 0:00:43]} 10. Rc1 {[%emt 0:00:45]} b6 {[%emt 0:00:59]} 11. Nh3 {[%emt 0:00:06]} Bxh3 {[%emt 0:00:04]} 12. Rxh3 {[%emt 0:00:02]} e5 {[%emt 0:00:09]} 13. d5 {[%emt 0:00:05]} c5 {[%emt 0:02:00]} 14. g4 {[%emt 0:00:06]} b5 {[%emt 0:02:13]} 15. cxb5 {[%emt 0:00:14]} axb5 {[%emt 0:00:02]} 16. Nxb5 {[%emt 0:00:04]} Qd7 {[%emt 0:00:26]} 17. g5 {[%emt 0:01:40]} Qxh3 {[%emt 0:01:10]} 18. gxf6 {[%emt 0:00:03]} Qh1+ {[%emt 0:01:43]} 19. Kf2 {[%emt 0:02:20]} Qh2+ {[%emt 0:00:02]} 20. Kf1 {[%emt 0:00:02]} Bxf6 {[%emt 0:00:16]} 21. Bc4 {[%emt 0:03:08]} Qh1+ {[%emt 0:03:30]} 22. Ke2 {[%emt 0:00:07]} Qg2+ {[%emt 0:00:03]} 23. Kd3 {[%emt 0:00:04]} Qxf3 {[%emt 0:00:29]} 24. Nxd6 {[%emt 0:00:17]} Rd8 {[%emt 0:00:55]} 25. Nb5 {[%emt 0:01:56]} Nc6 {[%emt 0:01:25]} 26. a3 {[%emt 0:02:23]} Bxh4 {[%emt 0:00:33]} 27. Qe2 {[%emt 0:00:15]} Qxe2+ {[%emt 0:00:24]} 28. Kxe2 {[%emt 0:00:02]} Nd4+ {[%emt 0:00:13]} 29. Bxd4 {[%emt 0:00:16]} cxd4 {[%emt 0:00:21]} 30. d6 {[%emt 0:00:19]} Rd7 {[%emt 0:00:26]} 31. Rf1 {[%emt 0:00:20]} Kg7 {[%emt 0:00:12]} 32. Bd5 {[%emt 0:01:04]} Ra6 {[%emt 0:00:48]} 33. b4 {[%emt 0:02:12]} Bd8 {[%emt 0:00:14]} 34. Kd3 {[%emt 0:00:26]} g5 {[%emt 0:00:22]} 35. Kc4 {[%emt 0:00:05]} g4 {[%emt 0:00:02]} 36. Kd3 {[%emt 0:00:49]} h4 {[%emt 0:00:02]} 37. Ke2 {[%emt 0:00:12]} Bg5 {[%emt 0:00:23]} 38. Rg1 {[%emt 0:00:16]} g3 {[%emt 0:00:02]} 39. Kf3 {[%emt 0:00:03]} Kg6 {[%emt 0:00:18]} 40. Kg4 {[%emt 0:00:03]} d3 {[%emt 0:00:04]} 41. Rd1 {[%emt 0:00:08]} d2 {[%emt 0:00:02]} 42. Rf1 {[%emt 0:00:21]} g2 {[%emt 0:00:12]} 0-1